fUSD/lending_fUSD_20260324
["ID","MTS","AMOUNT","RATE_DAILY","PERIOD"]
[408858649,1774341906963,-500.0,0.00046027,120]
[408858650,1774341907005,-500.0,0.00046027,120]
[408858651,1774341907049,-500.0,0.00046027,120]
[408858652,1774341907092,-500.0,0.00046027,30]
[408858653,1774341907135,-634.46,0.00046027,120]
[408858654,1774341907177,-500.0,0.00046027,120]
[408858655,1774341907220,-597.58,0.00046027,120]
[408858656,1774341907262,-500.0,0.00046027,120]
[408858657,1774341907305,-3144.42,0.00046027,120]
[408858658,1774341907349,-500.0,0.00046027,120]
[408858659,1774341907390,-500.0,0.00046027,120]
[408858660,1774341907430,-500.0,0.00046027,120]
[408858661,1774341907470,-500.0,0.00046027,120]
[408858662,1774341907513,-500.0,0.00046027,120]
[408858663,1774341907557,-500.0,0.00046027,120]
[408858664,1774341907597,-500.0,0.00046027,120]
[408858665,1774341907946,-500.0,0.00046027,120]
[408858666,1774341907990,-500.0,0.00046027,120]
[408858667,1774341908045,-500.0,0.00046027,120]
[408858668,1774341908089,-500.0,0.00046027,120]
[408858669,1774341908131,-500.0,0.00046027,120]
[408858670,1774341908177,-588.29,0.00046027,120]
[408858671,1774341908222,-500.0,0.00046027,120]
[408858672,1774341908267,-500.0,0.00046027,120]
[408858673,1774341908313,-500.0,0.00046027,120]
[408858674,1774341908360,-500.0,0.00046027,120]
[408858675,1774341908402,-558.38,0.00046027,120]
[408858676,1774341908446,-500.0,0.00046027,120]
[408858677,1774341908488,-500.0,0.00046027,120]
[408858678,1774341908532,-438.08190123,0.00046027,120]
[408858679,1774341908575,-1666.3,0.00046027,120]
[408858680,1774341908616,-1127.89,0.00046027,120]
[408858681,1774341908658,-833.99,0.00046027,120]
[408858682,1774341908703,-500.0,0.00046027,120]
[408858683,1774341908746,-500.0,0.00046027,120]
[408858684,1774341908791,-707.4,0.00046027,120]
[408858685,1774341908837,-196.06966264,0.00046027,120]
[408858686,1774341908885,-500.0,0.00046027,120]
[408858687,1774341908935,-500.0,0.00046027,120]
[408858688,1774341908981,-500.0,0.00046027,120]
[408858689,1774341909024,-5146.05,0.00046027,120]
[408858690,1774341909070,-500.0,0.00046027,120]
[408858691,1774341909113,-753.6,0.00046027,120]
[408858692,1774341909160,-336.7938937,0.00046027,120]
[408858693,1774341909204,-2320.82,0.00046027,90]
[408858694,1774341909254,-500.0,0.00046027,120]
[408858695,1774341909302,-500.0,0.00046027,120]
[408858696,1774341909345,-989.59,0.00046027,120]
[408858697,1774341909388,-1667.93,0.00046027,120]
[408858698,1774341909432,-717.94,0.00046027,120]
[408858699,1774341909475,-500.0,0.00046027,120]
[408858700,1774341909517,-972.23,0.00046027,120]
[408858701,1774341909558,-500.0,0.00046027,120]
[408858702,1774341909600,-500.0,0.00046027,120]
[408858703,1774341909640,-500.0,0.00046027,120]
[408858704,1774341909680,-500.0,0.00046027,120]
[408858705,1774341909719,-834.18,0.00046027,120]
[408858706,1774341909758,-788.64,0.00046027,120]
[408858707,1774341909802,-1464.26,0.00046027,120]
[408858708,1774341909852,-500.0,0.00046027,120]
[408858709,1774341909893,-500.0,0.00046027,120]
[408858710,1774341909937,-500.0,0.00046027,120]
[408858711,1774341909986,-432.0072111,0.00046027,120]
[408858712,1774341910030,-500.0,0.00046027,120]
[408858713,1774341910072,-1066.66,0.00046027,120]
[408858714,1774341910115,-667.09,0.00046027,120]
[408858715,1774341910154,-500.0,0.00046027,120]
[408858716,1774341910196,-500.0,0.00046027,120]
[408858717,1774341910236,-500.0,0.00046027,120]
[408858718,1774341910282,-500.0,0.00046027,120]
[408858719,1774341910325,-500.0,0.00046027,120]
[408858720,1774341910364,-618.35190764,0.00046027,120]
[408858721,1774341910404,-500.0,0.00046027,120]
[408858722,1774341910444,-500.0,0.00046027,120]
[408858723,1774341910482,-3026.5,0.00046027,120]
[408858724,1774341910522,-500.0,0.00046027,120]
[408858725,1774341910561,-500.0,0.00046027,120]
[408858726,1774341910602,-500.0,0.00046027,120]
[408858727,1774341910642,-500.0,0.00046027,30]
[408858728,1774341910683,-500.0,0.00046027,120]
[408858729,1774341910721,-560.83,0.00046027,60]
[408858730,1774341910759,-362.79929852,0.00046027,120]
[408858731,1774341910868,-500.0,0.00046027,120]
[408858732,1774341910905,-500.0,0.00046027,120]
[408858733,1774341910948,-500.0,0.00046027,120]
[408858734,1774341910989,-698.76,0.00046027,120]
[408858735,1774341911033,-500.0,0.00046027,120]
[408858736,1774341911075,-185.17862957,0.00046027,120]
[408858737,1774341911115,-360.42299959,0.00046027,120]
[408858738,1774341911155,-500.0,0.00046027,120]
[408858739,1774341911193,-517.25,0.00046027,120]
[408858740,1774341911234,-500.0,0.00046027,120]
[408858741,1774341911276,-164.90483382,0.00046027,120]
[408858742,1774341911316,-500.0,0.00046027,120]
[408858743,1774341911358,-579.58053361,0.00046027,120]
[408858744,1774341911397,-500.0,0.00046027,120]
[408858745,1774341911435,-500.0,0.00046027,120]
[408858746,1774341911473,-1068.58,0.00046027,120]
[408858747,1774341911510,-1383.25,0.00046027,120]
[408858748,1774341911548,-500.0,0.00046027,120]
[408858749,1774341911585,-500.0,0.00046027,120]
[408858750,1774341911623,-500.0,0.00046027,120]
[408858751,1774341911658,-500.0,0.00046027,120]
[408858752,1774341911694,-500.0,0.00046027,120]
[408858753,1774341911733,-3690.16,0.00046027,120]
[408858754,1774341911774,-500.0,0.00046027,120]
[408858755,1774341911815,-500.0,0.00046027,120]
[408858756,1774341911855,-500.0,0.00046027,120]
[408858757,1774341911892,-500.0,0.00046027,120]
[408858758,1774341911933,-500.0,0.00046027,120]
[408858759,1774341911974,-500.0,0.00046027,120]
[408858760,1774341912015,-500.0,0.00046027,120]
[408858761,1774341912058,-500.0,0.00046027,120]
[408858762,1774341912103,-160.94063408,0.00046027,120]
[408858763,1774341912147,-621.3,0.00046027,120]
[408858764,1774341912193,-500.0,0.00046027,120]
[408858765,1774341912238,-500.0,0.00046027,120]
[408858766,1774341912285,-2126.72,0.00046027,120]
[408858767,1774341912330,-581.64704796,0.00046027,120]
[408858768,1774341912375,-500.0,0.00046027,120]
[408858769,1774341912418,-500.0,0.00046027,120]
[408858770,1774341912461,-500.0,0.00046027,120]
[408858771,1774341912504,-500.0,0.00046027,120]
[408858772,1774341912549,-500.0,0.00046027,120]
[408858773,1774341912594,-694.45,0.00046027,120]
[408858774,1774341912636,-500.0,0.00046027,120]
[408858775,1774341912679,-500.0,0.00046027,120]
[408858776,1774341912720,-500.0,0.00046027,120]
[408858777,1774341912761,-500.0,0.00046027,120]
[408858778,1774341912801,-500.0,0.00046027,120]
[408858779,1774341912841,-500.0,0.00046027,120]
[408858780,1774341912881,-397.29202293,0.00046027,120]
[408858781,1774341912920,-500.0,0.00046027,120]
[408858782,1774341912963,-500.0,0.00046027,120]
[408858783,1774341913005,-1870.96,0.00046027,60]
[408858784,1774341913049,-500.0,0.00046027,120]
[408858785,1774341913091,-500.0,0.00046027,120]
[408858786,1774341913132,-500.0,0.00046027,120]
[408858787,1774341913174,-500.0,0.00046027,120]
[408858788,1774341913217,-500.0,0.00046027,120]
[408858789,1774341913258,-1542.37,0.00046027,120]
[408858790,1774341913299,-500.0,0.00046027,120]
[408858791,1774341913339,-500.0,0.00046027,120]
[408858792,1774341913378,-151.0,0.00046027,120]
[408858793,1774341913418,-500.0,0.00046027,120]
[408858794,1774341913458,-500.0,0.00046027,120]
[408858795,1774341913497,-500.0,0.00046027,120]
[408858796,1774341913536,-1094.1,0.00046027,120]
[408858797,1774341913575,-500.0,0.00046027,120]
[408858798,1774341913613,-500.0,0.00046027,120]
[408858799,1774341913653,-500.0,0.00046027,120]
[408858800,1774341913692,-522.71,0.00046027,120]
[408858801,1774341913732,-500.0,0.00046027,120]
[408858802,1774341913771,-190.66383899,0.00046027,120]
[408858803,1774341913813,-500.0,0.00046027,120]
[408858804,1774341913853,-500.0,0.00046027,120]
[408858805,1774341913892,-500.0,0.00046027,120]
[408858806,1774341913933,-500.0,0.00046027,120]
[408858807,1774341913975,-500.0,0.00046027,120]
[408858808,1774341914017,-346.50585849,0.00046027,120]
[408858809,1774341914059,-337.74793301,0.00046027,120]
[408858810,1774341914100,-500.0,0.00046027,120]
[408858811,1774341914141,-721.01,0.00046027,120]
[408858812,1774341914182,-1251.5,0.00046027,120]
[408858813,1774341914223,-500.0,0.00046027,120]
[408858814,1774341914264,-500.0,0.00046027,120]
[408858815,1774341914306,-872.26,0.00046027,120]
[408858816,1774341914349,-176.1102658,0.00046027,120]
[408858817,1774341914393,-500.0,0.00046027,120]
[408858818,1774341914435,-1166.7,0.00046027,120]
[408858819,1774341914477,-619.58364533,0.00046027,120]
[408858820,1774341914518,-503.52,0.00046027,120]
[408858821,1774341914560,-500.0,0.00046027,120]
[408858822,1774341914603,-500.0,0.00046027,120]
[408858823,1774341914646,-571.9,0.00046027,120]
[408858824,1774341914686,-500.0,0.00046027,120]
[408858825,1774341914726,-315.64355882,0.00046027,120]
[408858826,1774341914900,-500.0,0.00046027,120]
[408858827,1774341914946,-500.0,0.00046027,120]
[408858828,1774341914989,-4633.59,0.00046027,120]
[408858829,1774341915034,-435.5931918,0.00046027,120]
[408858830,1774341915077,-162.93766064,0.00046027,120]
[408858831,1774341915121,-368.22959967,0.00046027,120]
[408858832,1774341915166,-500.0,0.00046027,120]
[408858833,1774341915211,-1436.52,0.00046027,120]
[408858834,1774341915254,-500.0,0.00046027,120]
[408858835,1774341915294,-163.54,0.000461,30]
[408858836,1774341915334,-484.85,0.000461,30]
[408858837,1774341915375,-163.54,0.000461,30]
[408858838,1774341915414,-100000.00000038,0.0004611,31]
[408858839,1774341915456,-150.0,0.00046115,120]
[408858840,1774341915498,-171.5,0.000462,30]
[408858841,1774341915538,-296.366,0.000462,30]
[408858842,1774341915579,-150.0,0.00046247,120]
[408858843,1774341915619,-317.95,0.00046259,120]
[408858844,1774341915661,-150.0,0.0004629,120]
[408858845,1774341915703,-160.352963,0.00046294,120]
[408858846,1774341915743,-4000.0,0.000463,30]
[408858847,1774341915782,-3000.0,0.000463,30]
[408858848,1774341915823,-3000.0,0.000463,30]
[408858849,1774341915862,-520.0,0.000463,30]
[408858850,1774341915901,-52100.0,0.000463,120]
[408858851,1774341915943,-911.817249,0.000463,60]
[408858852,1774341915985,-156.5216645,0.00046301,120]
[408858853,1774341916029,-557.99460283,0.00046301,120]
[408858854,1774341916071,-766.31,0.00046301,120]
[408858855,1774341916111,-600.58,0.00046301,120]
[408858856,1774341916150,-620.65515757,0.00046301,120]
[408858857,1774341916190,-248.72502813,0.00046301,120]
[408858858,1774341916232,-561.45,0.00046301,120]
[408858859,1774341916274,-500.0,0.00046301,120]
[408858860,1774341916314,-1032.07,0.00046301,120]
[408858861,1774341916357,-500.0,0.00046301,120]
[408858862,1774341916397,-500.0,0.00046301,120]
[408858863,1774341916436,-806.09,0.00046301,120]
[408858864,1774341916475,-968.7,0.00046301,120]
[408858865,1774341916513,-275.9291894,0.00046301,120]
[408858866,1774341916551,-500.0,0.00046301,120]
[408858867,1774341916588,-777.88,0.00046301,120]
[408858868,1774341916625,-500.0,0.00046301,120]
[408858869,1774341916661,-784.79,0.00046301,120]
[408858870,1774341916698,-500.0,0.00046301,120]
[408858871,1774341916737,-500.0,0.00046301,120]
[408858872,1774341916777,-500.0,0.00046301,120]
[408858873,1774341916817,-1373.12,0.00046301,120]
[408858874,1774341916856,-500.0,0.00046301,120]
[408858875,1774341916895,-500.0,0.00046301,120]
[408858876,1774341916936,-500.0,0.00046301,120]
[408858877,1774341916977,-220.65723274,0.00046301,120]
[408858878,1774341917019,-2682.47,0.00046301,120]
[408858879,1774341917062,-1490.64,0.00046301,120]
[408858880,1774341917104,-585.16,0.00046301,120]
[408858881,1774341917145,-500.0,0.00046301,120]
[408858882,1774341917185,-638.02,0.00046301,120]
[408858883,1774341917227,-500.0,0.00046301,120]
[408858884,1774341917270,-500.0,0.00046301,120]
[408858885,1774341917311,-500.0,0.00046301,120]
[408858886,1774341917353,-500.0,0.00046301,120]
[408858887,1774341917393,-532.6,0.00046301,120]
[408858888,1774341917433,-500.0,0.00046301,60]
[408858889,1774341917472,-286.8101052,0.00046301,120]
[408858890,1774341917512,-500.0,0.00046301,120]
[408858891,1774341917554,-500.0,0.00046301,120]
[408858892,1774341917592,-842.73,0.00046301,120]
[408858893,1774341917628,-596.08,0.00046301,120]
[408858894,1774341917665,-500.0,0.00046301,120]
[408858895,1774341917700,-500.0,0.00046301,120]
[408858896,1774341917737,-500.0,0.00046301,120]
[408858897,1774341917772,-500.0,0.00046301,120]
[408858898,1774341917809,-500.0,0.00046301,120]
[408858899,1774341917847,-500.0,0.00046301,30]
[408858900,1774341917884,-566.54825732,0.00046301,120]
[408858901,1774341917921,-796.12,0.00046301,120]
[408858902,1774341917961,-500.0,0.00046301,120]
[408858903,1774341918001,-500.0,0.00046301,120]
[408858904,1774341918041,-500.0,0.00046301,120]
[408858905,1774341918078,-518.09,0.00046301,120]
[408858906,1774341918114,-500.0,0.00046301,30]
[408858907,1774341918150,-616.8,0.00046301,120]
[408858908,1774341918190,-862.31,0.00046301,120]
[408858909,1774341918230,-257.40654693,0.00046301,120]
[408858910,1774341918272,-500.0,0.00046301,120]
[408858911,1774341918626,-500.0,0.00046301,60]
[408858912,1774341918667,-500.0,0.00046301,120]
[408858913,1774341918705,-500.0,0.00046301,120]
[408858914,1774341918743,-500.0,0.00046301,120]
[408858915,1774341918781,-517.39,0.00046301,120]
[408858916,1774341918824,-537.23,0.00046301,120]
[408858917,1774341918864,-500.0,0.00046301,120]
[408858918,1774341918904,-1950.98,0.00046301,120]
[408858919,1774341918945,-828.22,0.00046301,120]
[408858920,1774341918987,-595.8,0.00046301,120]
[408858921,1774341919029,-613.54,0.00046301,120]
[408858922,1774341919072,-500.0,0.00046301,120]
[408858923,1774341919119,-500.0,0.00046301,120]
[408858924,1774341919164,-500.0,0.00046301,120]
[408858925,1774341919208,-500.0,0.00046301,120]
[408858926,1774341919253,-500.0,0.00046301,30]
[408858927,1774341919297,-500.0,0.00046301,120]
[408858928,1774341919339,-500.0,0.00046301,120]
[408858929,1774341919382,-500.0,0.00046301,120]
[408858930,1774341919424,-500.0,0.00046301,120]
[408858931,1774341919470,-2958.91,0.00046301,120]
[408858932,1774341919511,-500.0,0.00046301,120]
[408858933,1774341919550,-559.67,0.00046301,120]
[408858934,1774341919589,-500.0,0.00046301,120]
[408858935,1774341919629,-500.0,0.00046301,120]
[408858936,1774341919668,-625.87726955,0.00046301,120]
[408858937,1774341919708,-755.16,0.00046301,120]
[408858938,1774341919746,-500.0,0.00046301,120]
[408858939,1774341919785,-500.0,0.00046301,120]
[408858940,1774341919825,-500.0,0.00046301,120]
[408858941,1774341919864,-500.0,0.00046301,120]
[408858942,1774341919907,-500.0,0.00046301,120]
[408858943,1774341919947,-500.0,0.00046301,120]
[408858944,1774341919989,-500.0,0.00046301,60]
[408858945,1774341920032,-500.0,0.00046301,120]
[408858946,1774341920078,-500.0,0.00046301,120]
[408858947,1774341920119,-1037.12,0.00046301,120]
[408858948,1774341920163,-1087.57,0.00046301,120]
[408858949,1774341920205,-579.36940519,0.00046301,120]
[408858950,1774341920250,-500.0,0.00046301,120]
[408858951,1774341920300,-500.0,0.00046301,120]
[408858952,1774341920340,-564.15,0.00046301,120]
[408858953,1774341920379,-1059.95,0.00046301,120]
[408858954,1774341920417,-500.0,0.00046301,120]
[408858955,1774341920462,-500.0,0.00046301,120]
[408858956,1774341920502,-500.0,0.00046301,120]
[408858957,1774341920542,-438.35157437,0.00046301,120]
[408858958,1774341920579,-500.0,0.00046301,120]
[408858959,1774341920616,-542.10933485,0.00046301,120]
[408858960,1774341920653,-500.0,0.00046301,120]
[408858961,1774341920690,-500.0,0.00046301,120]
[408858962,1774341920726,-500.0,0.00046301,30]
[408858963,1774341920769,-634.46,0.00046301,120]
[408858964,1774341920807,-500.0,0.00046301,120]
[408858965,1774341920846,-597.58,0.00046301,120]
[408858966,1774341920882,-500.0,0.00046301,120]
[408858967,1774341920922,-3144.42,0.00046301,120]
[408858968,1774341920960,-500.0,0.00046301,120]
[408858969,1774341920999,-500.0,0.00046301,120]
[408858970,1774341921038,-500.0,0.00046301,120]
[408858971,1774341921078,-500.0,0.00046301,120]
[408858972,1774341921131,-500.0,0.00046301,120]
[408858973,1774341921175,-500.0,0.00046301,120]
[408858974,1774341921217,-500.0,0.00046301,120]
[408858975,1774341921263,-500.0,0.00046301,120]
[408858976,1774341921305,-500.0,0.00046301,120]
[408858977,1774341921482,-500.0,0.00046301,120]
[408858978,1774341921527,-176.82124943,0.00046301,120]
[408858979,1774341921571,-588.29,0.00046301,120]
[408858980,1774341921607,-500.0,0.00046301,120]
[408858981,1774341921643,-500.0,0.00046301,120]
[408858982,1774341921678,-172.2193022,0.00046301,120]
[408858983,1774341921715,-500.0,0.00046301,120]
[408858984,1774341921751,-558.38,0.00046301,120]
[408858985,1774341921787,-500.0,0.00046301,120]
[408858986,1774341921823,-500.0,0.00046301,120]
[408858987,1774341921859,-1666.3,0.00046301,120]
[408858988,1774341921899,-1127.89,0.00046301,120]
[408858989,1774341921936,-833.99,0.00046301,120]
[408858990,1774341921974,-500.0,0.00046301,120]
[408858991,1774341922013,-500.0,0.00046301,120]
[408858992,1774341922055,-707.4,0.00046301,120]
[408858993,1774341922093,-500.0,0.00046301,120]
[408858994,1774341922132,-500.0,0.00046301,120]
[408858995,1774341922173,-500.0,0.00046301,120]
[408858996,1774341922210,-5146.05,0.00046301,120]
[408858997,1774341922251,-500.0,0.00046301,120]
[408858998,1774341922294,-753.6,0.00046301,120]
[408858999,1774341922333,-2320.82,0.00046301,90]
[408859000,1774341922373,-500.0,0.00046301,120]
[408859001,1774341922409,-500.0,0.00046301,120]
[408859002,1774341922449,-989.59,0.00046301,120]
[408859003,1774341922494,-1667.93,0.00046301,120]
[408859004,1774341922536,-717.94,0.00046301,120]
[408859005,1774341922573,-500.0,0.00046301,120]
[408859006,1774341922609,-972.23,0.00046301,120]
[408859007,1774341922645,-619.63176768,0.00046301,120]
[408859008,1774341922683,-500.0,0.00046301,120]
[408859009,1774341922719,-500.0,0.00046301,120]
[408859010,1774341922756,-500.0,0.00046301,120]
[408859011,1774341922791,-834.18,0.00046301,120]
[408859012,1774341922826,-788.64,0.00046301,120]
[408859013,1774341922861,-1464.26,0.00046301,120]
[408859014,1774341922897,-500.0,0.00046301,120]
[408859015,1774341922934,-500.0,0.00046301,120]
[408859016,1774341922975,-500.0,0.00046301,120]
[408859017,1774341923017,-500.0,0.00046301,120]
[408859018,1774341923058,-1066.66,0.00046301,120]
[408859019,1774341923097,-667.09,0.00046301,120]
[408859020,1774341923136,-500.0,0.00046301,120]
[408859021,1774341923175,-500.0,0.00046301,120]
[408859022,1774341923216,-176.37450306,0.00046301,120]
[408859023,1774341923258,-500.0,0.00046301,120]
[408859024,1774341923300,-176.68668273,0.00046301,120]
[408859025,1774341923341,-500.0,0.00046301,120]
[408859026,1774341923381,-500.0,0.00046301,120]
[408859027,1774341923422,-3026.5,0.00046301,120]
[408859028,1774341923461,-180.10530961,0.00046301,120]
[408859029,1774341923500,-500.0,0.00046301,120]
[408859030,1774341923545,-517.66512534,0.00046301,120]
[408859031,1774341923585,-500.0,0.00046301,30]
[408859032,1774341923628,-500.0,0.00046301,120]
[408859033,1774341923669,-560.83,0.00046301,60]
[408859034,1774341923711,-500.0,0.00046301,120]
[408859035,1774341923750,-500.0,0.00046301,120]
[408859036,1774341923787,-500.0,0.00046301,120]
[408859037,1774341923825,-698.76,0.00046301,120]
[408859038,1774341923863,-500.0,0.00046301,120]
[408859039,1774341923902,-500.0,0.00046301,120]
[408859040,1774341923941,-517.25,0.00046301,120]
[408859041,1774341923982,-500.0,0.00046301,120]
[408859042,1774341924024,-500.0,0.00046301,120]
[408859043,1774341924066,-500.0,0.00046301,120]
[408859044,1774341924107,-500.0,0.00046301,120]
[408859045,1774341924150,-1068.58,0.00046301,120]
[408859046,1774341924193,-1383.25,0.00046301,120]
[408859047,1774341924236,-500.0,0.00046301,120]
[408859048,1774341924282,-500.0,0.00046301,120]
[408859049,1774341924321,-500.0,0.00046301,120]
[408859050,1774341924360,-500.0,0.00046301,120]
[408859051,1774341924401,-576.72214111,0.00046301,120]
[408859052,1774341924446,-3690.16,0.00046301,120]
[408859053,1774341924488,-500.0,0.00046301,120]
[408859054,1774341924528,-500.0,0.00046301,120]
[408859055,1774341924565,-500.0,0.00046301,120]
[408859056,1774341924603,-500.0,0.00046301,120]
[408859057,1774341924641,-500.0,0.00046301,120]
[408859058,1774341924679,-500.0,0.00046301,120]
[408859059,1774341924719,-500.0,0.00046301,120]
[408859060,1774341924757,-500.0,0.00046301,120]
[408859061,1774341924795,-621.3,0.00046301,120]
[408859062,1774341924832,-500.0,0.00046301,120]
[408859063,1774341924870,-511.30929274,0.00046301,120]
[408859064,1774341924907,-2126.72,0.00046301,120]
[408859065,1774341924947,-539.78941101,0.00046301,120]
[408859066,1774341924987,-500.0,0.00046301,120]
[408859067,1774341925028,-361.98226401,0.00046301,120]
[408859068,1774341925067,-500.0,0.00046301,120]
[408859069,1774341925105,-500.0,0.00046301,120]
[408859070,1774341925143,-694.45,0.00046301,120]
[408859071,1774341925186,-248.1785311,0.00046301,120]
[408859072,1774341925426,-500.0,0.00046301,120]
[408859073,1774341925469,-500.0,0.00046301,120]
[408859074,1774341925509,-500.0,0.00046301,120]
[408859075,1774341925546,-500.0,0.00046301,120]
[408859076,1774341925583,-500.0,0.00046301,120]
[408859077,1774341925618,-500.0,0.00046301,120]
[408859078,1774341925655,-500.0,0.00046301,120]
[408859079,1774341925693,-1870.96,0.00046301,60]
[408859080,1774341925732,-500.0,0.00046301,120]
[408859081,1774341925771,-500.0,0.00046301,120]
[408859082,1774341925810,-500.0,0.00046301,120]
[408859083,1774341925849,-500.0,0.00046301,120]
[408859084,1774341925888,-215.54254445,0.00046301,120]
[408859085,1774341925929,-1542.37,0.00046301,120]
[408859086,1774341925968,-500.0,0.00046301,120]
[408859087,1774341926010,-597.12393748,0.00046301,120]
[408859088,1774341926063,-500.0,0.00046301,120]
[408859089,1774341926106,-500.0,0.00046301,120]
[408859090,1774341926146,-1094.1,0.00046301,120]
[408859091,1774341926186,-500.0,0.00046301,120]
[408859092,1774341926225,-500.0,0.00046301,120]
[408859093,1774341926265,-500.0,0.00046301,120]
[408859094,1774341926308,-522.71,0.00046301,120]
[408859095,1774341926352,-500.0,0.00046301,120]
[408859096,1774341926394,-500.0,0.00046301,120]
[408859097,1774341926434,-500.0,0.00046301,120]
[408859098,1774341926475,-500.0,0.00046301,120]
[408859099,1774341926514,-500.0,0.00046301,120]
[408859100,1774341926553,-500.0,0.00046301,120]
[408859101,1774341926591,-500.0,0.00046301,120]
[408859102,1774341926631,-721.01,0.00046301,120]
[408859103,1774341926672,-1251.5,0.00046301,120]
[408859104,1774341926711,-500.0,0.00046301,120]
[408859105,1774341926750,-500.0,0.00046301,120]
[408859106,1774341926788,-872.26,0.00046301,120]
[408859107,1774341926826,-319.31754056,0.00046301,120]
[408859108,1774341926865,-1166.7,0.00046301,120]
[408859109,1774341926905,-503.52,0.00046301,120]
[408859110,1774341926946,-246.44144302,0.00046301,120]
[408859111,1774341926992,-500.0,0.00046301,120]
[408859112,1774341927041,-571.9,0.00046301,120]
[408859113,1774341927088,-500.0,0.00046301,120]
[408859114,1774341927138,-500.0,0.00046301,120]
[408859115,1774341927186,-500.0,0.00046301,120]
[408859116,1774341927233,-4633.59,0.00046301,120]
[408859117,1774341927282,-500.0,0.00046301,120]
[408859118,1774341927329,-1436.52,0.00046301,120]
[408859119,1774341927377,-500.0,0.00046301,120]
[408859120,1774341927423,-182.53631767,0.0004631,120]
[408859121,1774341927471,-3574.0,0.0004635,60]
[408859122,1774341927518,-207.0,0.000464,120]
[408859123,1774341927563,-1775.77827539,0.000464,30]
[408859124,1774341927610,-1357996.0,0.0004646,120]
[408859125,1774341927656,-204378.87750834,0.0004646,120]
[408859126,1774342159124,-256.0,9.747e-05,2]
[408859127,1774342159146,-250.0,9.747e-05,2]
[408859128,1774342159167,-613.5324,9.747e-05,2]
[408859129,1774342232160,-508.61,9.747e-05,2]
[408859130,1774342232171,-626.74274504,9.747e-05,2]
[408859131,1774342232181,-683.1,9.747e-05,2]
[408859132,1774342232191,-683.1,0.00010171,2]
[408859133,1774342232200,-683.1,0.00010595,2]
[408859134,1774342232211,-150.0,0.000107,2]
[408859135,1774342232221,-1200.0,0.00010721,2]
[408859136,1774342232231,-300.0,0.00010721,2]
[408859137,1774342232240,-250.0,0.00010722,2]
[408859138,1774342232249,-250.0,0.00010722,2]
[408859139,1774342232259,-5000.0,0.00010722,2]
[408859140,1774342232267,-195.23491641,0.00010722,2]
[408859141,1774342232276,-5000.0,0.00010722,2]
[408859142,1774342232286,-390.46916564,0.00010722,2]
[408859143,1774342232296,-683.1,0.00011019,2]
[408859144,1774342232305,-683.1,0.00011442,2]
[408859145,1774342232315,-420.0,0.00011784,2]
[408859146,1774342232326,-683.1,0.00011866,2]
[408859147,1774342232339,-683.1,0.0001229,2]
[408859148,1774342232347,-370.8332,0.00012516,2]